[Event "*** Titled Tuesday Blitz"]
[Site "Chess.com"]
[Date "2020.05.19"]
[Round "6"]
[White "Korchmar_Vasiliy"]
[Black "Lovinski"]
[Result "1-0"]
[WhiteElo "2613"]
[BlackElo "2463"]
[TimeControl "180+1"]
[EndTime "13:09:54 PDT"]
[Termination "Korchmar_Vasiliy won by resignation"]

1. d4 {[%clk 0:03:00.9]} 1... d5 {[%clk 0:03:00.1]} 2. c4 {[%clk 0:03:01]} 2...
e6 {[%clk 0:03:00.6]} 3. Nf3 {[%clk 0:03:01.2]} 3... a6 {[%clk 0:03:00.9]} 4. g3
{[%clk 0:02:59.8]} 4... dxc4 {[%clk 0:03:00.7]} 5. Bg2 {[%clk 0:02:59.5]} 5...
b5 {[%clk 0:03:01.2]} 6. Ne5 {[%clk 0:02:54.8]} 6... c6 {[%clk 0:03:00.8]} 7.
O-O {[%clk 0:02:49.7]} 7... Bb7 {[%clk 0:02:58.1]} 8. b3 {[%clk 0:02:49.9]} 8...
cxb3 {[%clk 0:02:55]} 9. axb3 {[%clk 0:02:50.8]} 9... Nf6 {[%clk 0:02:54.7]} 10.
Nc3 {[%clk 0:02:47.1]} 10... Bb4 {[%clk 0:02:49.3]} 11. Bb2 {[%clk 0:02:33.2]}
11... O-O {[%clk 0:02:47.3]} 12. Ne4 {[%clk 0:02:30.2]} 12... Nd5 {[%clk
0:02:18.1]} 13. Qc2 {[%clk 0:02:10.7]} 13... Be7 {[%clk 0:02:02.3]} 14. Rfc1
{[%clk 0:02:02.8]} 14... Qb6 {[%clk 0:01:49.5]} 15. Nc5 {[%clk 0:01:54.8]} 15...
Bxc5 {[%clk 0:01:40.4]} 16. dxc5 {[%clk 0:01:55.7]} 16... Qc7 {[%clk 0:01:33.5]}
17. e4 {[%clk 0:01:49.4]} 17... Nf6 {[%clk 0:01:31.7]} 18. Rd1 {[%clk
0:01:44.4]} 18... Nbd7 {[%clk 0:01:28.8]} 19. Rd6 {[%clk 0:01:27.3]} 19... Rad8
{[%clk 0:01:20.6]} 20. Rad1 {[%clk 0:01:21.2]} 20... Nxe5 {[%clk 0:01:18.2]} 21.
Bxe5 {[%clk 0:01:20.8]} 21... Qe7 {[%clk 0:01:18.7]} 22. Qd2 {[%clk 0:01:08.5]}
22... Rc8 {[%clk 0:01:03]} 23. h3 {[%clk 0:00:53.5]} 23... h6 {[%clk 0:00:54.8]}
24. g4 {[%clk 0:00:50.7]} 24... Nh7 {[%clk 0:00:30.6]} 25. Rd7 {[%clk
0:00:41.2]} 25... Qxc5 {[%clk 0:00:29.1]} 26. Bd4 {[%clk 0:00:41.9]} 26... Qa3
{[%clk 0:00:22.7]} 27. Rxb7 {[%clk 0:00:41.7]} 27... Qxb3 {[%clk 0:00:23.1]} 28.
Bc5 {[%clk 0:00:36.2]} 28... Rfe8 {[%clk 0:00:19.7]} 29. Qd7 {[%clk 0:00:33.7]}
29... e5 {[%clk 0:00:20.2]} 30. Rd3 {[%clk 0:00:28.8]} 30... Qe6 {[%clk
0:00:20.1]} 31. Qxe6 {[%clk 0:00:25]} 31... Rxe6 {[%clk 0:00:20.5]} 32. Rdd7
{[%clk 0:00:25.9]} 32... Ng5 {[%clk 0:00:20.6]} 33. h4 {[%clk 0:00:24.3]} 33...
Rf6 {[%clk 0:00:17.9]} 34. hxg5 {[%clk 0:00:23.5]} 34... hxg5 {[%clk 0:00:18.8]}
35. Ra7 {[%clk 0:00:15.3]} 35... a5 {[%clk 0:00:17]} 36. Rxa5 {[%clk 0:00:14.7]}
36... Kh7 {[%clk 0:00:17.8]} 37. Raa7 {[%clk 0:00:14.4]} 37... Kg6 {[%clk
0:00:18.3]} 38. f3 {[%clk 0:00:10.8]} 38... Rh8 {[%clk 0:00:18.3]} 39. Kf2
{[%clk 0:00:09.9]} 39... Rh2 {[%clk 0:00:18.1]} 40. Kg3 {[%clk 0:00:09.8]} 40...
Rh8 {[%clk 0:00:16.8]} 41. Be7 {[%clk 0:00:09.2]} 41... Re6 {[%clk 0:00:16.3]}
42. Bb4 {[%clk 0:00:09.7]} 42... Rf6 {[%clk 0:00:16.5]} 43. Bc3 {[%clk
0:00:10.1]} 43... Re8 {[%clk 0:00:15.8]} 44. Re7 {[%clk 0:00:09.2]} 44... Rxe7
{[%clk 0:00:16.2]} 45. Rxe7 {[%clk 0:00:09.7]} 45... Rd6 {[%clk 0:00:17.1]} 46.
Bxe5 {[%clk 0:00:08.9]} 46... Rd3 {[%clk 0:00:18]} 47. Rc7 {[%clk 0:00:08.6]}
47... f6 {[%clk 0:00:18.4]} 48. Rxc6 {[%clk 0:00:08.7]} 48... b4 {[%clk
0:00:19]} 49. Rb6 {[%clk 0:00:08.7]} 49... b3 {[%clk 0:00:19.4]} 50. Bd6 {[%clk
0:00:07.5]} 50... Rc3 {[%clk 0:00:18.9]} 51. Rb7 {[%clk 0:00:05.4]} 51... Kh6
{[%clk 0:00:15.9]} 52. Bf8 {[%clk 0:00:05.5]} 52... Kh7 {[%clk 0:00:16.2]} 53.
Rxg7+ {[%clk 0:00:05.1]} 53... Kh8 {[%clk 0:00:17.1]} 54. Rb7 {[%clk 0:00:06]}
54... Kg8 {[%clk 0:00:17.1]} 55. Be7 {[%clk 0:00:06.1]} 55... Kf7 {[%clk
0:00:18]} 56. Bb4+ {[%clk 0:00:06.2]} 56... Ke6 {[%clk 0:00:18.9]} 57. Bxc3
{[%clk 0:00:06.2]} 1-0

[Event "*** Titled Tuesday Blitz"]
[Site "Chess.com"]
[Date "2020.05.19"]
[Round "6"]
[White "Enriquack"]
[Black "Nikithebest"]
[Result "1-0"]
[WhiteElo "2311"]
[BlackElo "2435"]
[TimeControl "180+1"]
[EndTime "13:09:55 PDT"]
[Termination "Enriquack won by resignation"]

1. e4 {[%clk 0:03:00.9]} 1... c5 {[%clk 0:02:59.7]} 2. Nf3 {[%clk 0:03:01]} 2...
d6 {[%clk 0:02:59.4]} 3. d4 {[%clk 0:03:00.9]} 3... cxd4 {[%clk 0:02:59.6]} 4.
Nxd4 {[%clk 0:03:01.8]} 4... Nf6 {[%clk 0:02:59.8]} 5. Nc3 {[%clk 0:03:02.1]}
5... g6 {[%clk 0:03:00.1]} 6. Be3 {[%clk 0:03:02.2]} 6... a6 {[%clk 0:03:00.6]}
7. f3 {[%clk 0:02:56.1]} 7... b5 {[%clk 0:03:00.5]} 8. a4 {[%clk 0:02:50.3]}
8... b4 {[%clk 0:02:43.5]} 9. Nd5 {[%clk 0:02:50.4]} 9... Nxd5 {[%clk 0:02:42]}
10. exd5 {[%clk 0:02:51.3]} 10... Bg7 {[%clk 0:02:42.2]} 11. Bc4 {[%clk
0:02:32.1]} 11... Bb7 {[%clk 0:02:32.5]} 12. O-O {[%clk 0:02:28.6]} 12... Nd7
{[%clk 0:02:32.2]} 13. Re1 {[%clk 0:02:04.5]} 13... O-O {[%clk 0:02:23.2]} 14.
f4 {[%clk 0:01:53.4]} 14... Qc7 {[%clk 0:02:14.9]} 15. Nc6 {[%clk 0:01:40.8]}
15... Bxc6 {[%clk 0:01:53.4]} 16. dxc6 {[%clk 0:01:40.8]} 16... Nf6 {[%clk
0:01:47.2]} 17. Bd4 {[%clk 0:01:20.3]} 17... Rfe8 {[%clk 0:01:46.4]} 18. Qf3
{[%clk 0:01:03.3]} 18... e6 {[%clk 0:01:39.2]} 19. c3 {[%clk 0:00:43.7]} 19...
d5 {[%clk 0:01:34.3]} 20. Bf1 {[%clk 0:00:40.2]} 20... bxc3 {[%clk 0:01:22.4]}
21. Qxc3 {[%clk 0:00:37.4]} 21... Ne4 {[%clk 0:01:22.5]} 22. Rxe4 {[%clk
0:00:37.6]} 22... dxe4 {[%clk 0:01:13.5]} 23. Bxg7 {[%clk 0:00:37.3]} 23... Rec8
{[%clk 0:01:05.1]} 24. Rc1 {[%clk 0:00:36.7]} 24... Qxf4 {[%clk 0:01:05]} 25.
Be5 {[%clk 0:00:33.1]} 25... Qg5 {[%clk 0:00:49.6]} 26. Bg3 {[%clk 0:00:25.9]}
26... f5 {[%clk 0:00:42.7]} 27. Be5 {[%clk 0:00:25.2]} 27... f4 {[%clk
0:00:38.2]} 28. Re1 {[%clk 0:00:24.3]} 28... e3 {[%clk 0:00:23.9]} 29. g3 {[%clk
0:00:24.3]} 29... Rf8 {[%clk 0:00:15.7]} 30. Kh1 {[%clk 0:00:17.7]} 30... Qh5
{[%clk 0:00:12.6]} 31. Bxf4 {[%clk 0:00:16.2]} 31... Qf3+ {[%clk 0:00:12.4]} 32.
Bg2 {[%clk 0:00:16.2]} 32... Qf2 {[%clk 0:00:12.9]} 33. Qxe3 {[%clk 0:00:15.6]}
33... Qxe3 {[%clk 0:00:12.3]} 34. Rxe3 {[%clk 0:00:15.4]} 34... Rfe8 {[%clk
0:00:11.5]} 35. b4 {[%clk 0:00:14.4]} 35... h6 {[%clk 0:00:10.4]} 36. Be5 {[%clk
0:00:14.6]} 36... Kf7 {[%clk 0:00:10.3]} 37. h4 {[%clk 0:00:14.8]} 37... Rad8
{[%clk 0:00:10.5]} 38. b5 {[%clk 0:00:15]} 38... Rd1+ {[%clk 0:00:10.7]} 39. Kh2
{[%clk 0:00:15.2]} 39... axb5 {[%clk 0:00:11.4]} 40. axb5 {[%clk 0:00:15.4]}
40... Rb1 {[%clk 0:00:12.3]} 41. Rf3+ {[%clk 0:00:14.2]} 41... Kg8 {[%clk
0:00:11]} 42. c7 {[%clk 0:00:14]} 42... Rxb5 {[%clk 0:00:10.5]} 43. Bd6 {[%clk
0:00:14.2]} 43... Rd5 {[%clk 0:00:10.3]} 44. Bf4 {[%clk 0:00:13.8]} 44... e5
{[%clk 0:00:10.5]} 45. Bxh6 {[%clk 0:00:14.1]} 45... Rc5 {[%clk 0:00:10.8]} 46.
Re3 {[%clk 0:00:13.8]} 46... Rxc7 {[%clk 0:00:10.8]} 47. Bg5 {[%clk 0:00:14.3]}
47... Kg7 {[%clk 0:00:04.7]} 48. Be4 {[%clk 0:00:14.4]} 48... Rc4 {[%clk
0:00:03]} 49. Kh3 {[%clk 0:00:14.4]} 49... Rd4 {[%clk 0:00:01.5]} 50. Bb1 {[%clk
0:00:14]} 50... Rf8 {[%clk 0:00:01.9]} 51. Ra3 {[%clk 0:00:13.5]} 51... Rf7
{[%clk 0:00:02.4]} 52. Ra6 {[%clk 0:00:13.1]} 52... Re4 {[%clk 0:00:02.8]} 53.
Bxe4 {[%clk 0:00:12.4]} 53... Re7 {[%clk 0:00:02.8]} 54. Rxg6+ {[%clk
0:00:12.6]} 54... Kf7 {[%clk 0:00:03.6]} 55. Bxe7 {[%clk 0:00:12.6]} 55... Kxe7
{[%clk 0:00:03.6]} 56. h5 {[%clk 0:00:13.1]} 56... Kf7 {[%clk 0:00:04.5]} 57. h6
{[%clk 0:00:13.6]} 1-0

[Event "*** Titled Tuesday Blitz"]
[Site "Chess.com"]
[Date "2020.05.19"]
[Round "6"]
[White "DortmundCity"]
[Black "kuban1991"]
[Result "0-1"]
[WhiteElo "2501"]
[BlackElo "2749"]
[TimeControl "180+1"]
[EndTime "13:09:57 PDT"]
[Termination "kuban1991 won on time"]

1. e4 {[%clk 0:02:56]} 1... e6 {[%clk 0:02:59.4]} 2. d4 {[%clk 0:02:54.1]} 2...
d5 {[%clk 0:02:59.7]} 3. e5 {[%clk 0:02:54.2]} 3... c5 {[%clk 0:02:59.4]} 4. c3
{[%clk 0:02:53]} 4... Nc6 {[%clk 0:02:59.6]} 5. Be3 {[%clk 0:02:52.8]} 5... Qb6
{[%clk 0:02:57.7]} 6. Qd2 {[%clk 0:02:50.5]} 6... cxd4 {[%clk 0:02:51.3]} 7.
cxd4 {[%clk 0:02:50.2]} 7... Nh6 {[%clk 0:02:51.4]} 8. Bxh6 {[%clk 0:02:44.6]}
8... gxh6 {[%clk 0:02:52.3]} 9. Nf3 {[%clk 0:02:44.6]} 9... Bd7 {[%clk
0:02:50.4]} 10. Nc3 {[%clk 0:02:40.3]} 10... O-O-O {[%clk 0:02:43.3]} 11. Be2
{[%clk 0:02:30.9]} 11... Kb8 {[%clk 0:02:42.4]} 12. O-O {[%clk 0:02:30.3]} 12...
Rg8 {[%clk 0:02:37]} 13. Rab1 {[%clk 0:02:24.1]} 13... Na5 {[%clk 0:02:32.1]}
14. b4 {[%clk 0:02:17.7]} 14... Nc4 {[%clk 0:02:31.7]} 15. Qf4 {[%clk
0:02:13.3]} 15... Be8 {[%clk 0:02:18.1]} 16. Bd3 {[%clk 0:02:10]} 16... h5
{[%clk 0:02:03]} 17. h3 {[%clk 0:02:09.6]} 17... h6 {[%clk 0:02:02.2]} 18. a4
{[%clk 0:02:02.9]} 18... Bxb4 {[%clk 0:01:55.5]} 19. Qf6 {[%clk 0:01:55.3]}
19... a5 {[%clk 0:01:50.3]} 20. Qxh6 {[%clk 0:01:50.7]} 20... Bc6 {[%clk
0:01:33.7]} 21. Rfc1 {[%clk 0:01:42.8]} 21... Qc7 {[%clk 0:01:26.3]} 22. Nb5
{[%clk 0:01:43]} 22... Bxb5 {[%clk 0:01:23]} 23. axb5 {[%clk 0:01:42.4]} 23...
Qb6 {[%clk 0:01:21.8]} 24. Bxc4 {[%clk 0:01:31.5]} 24... dxc4 {[%clk 0:01:20.9]}
25. Rxc4 {[%clk 0:01:26.7]} 25... Qxb5 {[%clk 0:01:19.9]} 26. Rc3 {[%clk
0:01:11]} 26... Qd5 {[%clk 0:01:16]} 27. Rcb3 {[%clk 0:01:11.4]} 27... Rc8
{[%clk 0:01:11.7]} 28. Qh7 {[%clk 0:01:07.8]} 28... Qd7 {[%clk 0:01:09.5]} 29.
Qxh5 {[%clk 0:01:04.1]} 29... Rc3 {[%clk 0:01:05.6]} 30. R3b2 {[%clk 0:01:03.1]}
30... Rgc8 {[%clk 0:01:02.8]} 31. Qg5 {[%clk 0:00:59.1]} 31... Rxf3 {[%clk
0:00:53.2]} 32. gxf3 {[%clk 0:00:53.7]} 32... Qxd4 {[%clk 0:00:53.6]} 33. Kg2
{[%clk 0:00:48.1]} 33... Rc5 {[%clk 0:00:41.4]} 34. Qg8+ {[%clk 0:00:41.7]}
34... Ka7 {[%clk 0:00:40]} 35. Qxf7 {[%clk 0:00:42]} 35... Rxe5 {[%clk
0:00:37.1]} 36. Qf6 {[%clk 0:00:34.1]} 36... Qc3 {[%clk 0:00:26.9]} 37. h4
{[%clk 0:00:30.4]} 37... Qc5 {[%clk 0:00:21.1]} 38. Ra2 {[%clk 0:00:23.3]} 38...
Bc3 {[%clk 0:00:15.8]} 39. Qf4 {[%clk 0:00:12.7]} 39... Rf5 {[%clk 0:00:12.6]}
40. Qe4 {[%clk 0:00:11.4]} 40... Qd5 {[%clk 0:00:12.5]} 41. Qxd5 {[%clk
0:00:03.6]} 41... Rxd5 {[%clk 0:00:13.4]} 42. Ra3 {[%clk 0:00:03.6]} 42... Bd2
{[%clk 0:00:11.3]} 43. Rd1 {[%clk 0:00:03.4]} 43... b5 {[%clk 0:00:11.1]} 44.
Ra2 {[%clk 0:00:03.7]} 44... Bc3 {[%clk 0:00:09.5]} 45. Rxd5 {[%clk 0:00:03.8]}
45... exd5 {[%clk 0:00:10.4]} 46. h5 {[%clk 0:00:04.3]} 46... Kb6 {[%clk
0:00:11.1]} 47. f4 {[%clk 0:00:03.9]} 47... b4 {[%clk 0:00:11.5]} 48. Kf3 {[%clk
0:00:04.6]} 48... Kb5 {[%clk 0:00:11.1]} 49. Ke2 {[%clk 0:00:04.6]} 49... b3
{[%clk 0:00:11.6]} 50. Ra3 {[%clk 0:00:03.1]} 50... Kb4 {[%clk 0:00:11.7]} 51.
Rxb3+ {[%clk 0:00:01.4]} 51... Kxb3 {[%clk 0:00:11.9]} 52. Kd3 {[%clk
0:00:01.8]} 52... a4 {[%clk 0:00:12.3]} 0-1

[Event "*** Titled Tuesday Blitz"]
[Site "Chess.com"]
[Date "2020.05.19"]
[Round "6"]
[White "Belka1989"]
[Black "baby_leo"]
[Result "1/2-1/2"]
[WhiteElo "2127"]
[BlackElo "2006"]
[TimeControl "180+1"]
[EndTime "13:10:00 PDT"]
[Termination "Game drawn by agreement"]

1. d4 {[%clk 0:03:00.9]} 1... Nf6 {[%clk 0:02:50.7]} 2. Nf3 {[%clk 0:03:00.9]}
2... e6 {[%clk 0:02:48.8]} 3. Bf4 {[%clk 0:03:01.4]} 3... b6 {[%clk 0:02:47.3]}
4. e3 {[%clk 0:03:02]} 4... Bb7 {[%clk 0:02:47.5]} 5. Be2 {[%clk 0:02:59.7]}
5... Be7 {[%clk 0:02:48.4]} 6. O-O {[%clk 0:02:58.8]} 6... Nh5 {[%clk
0:02:47.8]} 7. Bg3 {[%clk 0:02:36.5]} 7... O-O {[%clk 0:02:45.9]} 8. c3 {[%clk
0:02:35.1]} 8... f5 {[%clk 0:02:44.4]} 9. Nbd2 {[%clk 0:02:22]} 9... Nxg3 {[%clk
0:02:43.2]} 10. hxg3 {[%clk 0:02:19.4]} 10... d6 {[%clk 0:02:44.1]} 11. Qb3
{[%clk 0:02:15.5]} 11... Qd7 {[%clk 0:02:39.6]} 12. Bc4 {[%clk 0:02:07.5]} 12...
d5 {[%clk 0:02:18.3]} 13. Bb5 {[%clk 0:01:51]} 13... Nc6 {[%clk 0:02:12.6]} 14.
Ne5 {[%clk 0:01:46.7]} 14... Qd6 {[%clk 0:02:12]} 15. Ndf3 {[%clk 0:01:35.2]}
15... Nxe5 {[%clk 0:02:07.4]} 16. Nxe5 {[%clk 0:01:32]} 16... c5 {[%clk
0:02:05]} 17. Be2 {[%clk 0:01:20.4]} 17... Bf6 {[%clk 0:01:57]} 18. f4 {[%clk
0:01:10.2]} 18... Bxe5 {[%clk 0:01:51.1]} 19. dxe5 {[%clk 0:01:04.7]} 19... Qc6
{[%clk 0:01:34.1]} 20. Rfd1 {[%clk 0:00:56.9]} 20... a6 {[%clk 0:01:31.9]} 21.
a4 {[%clk 0:00:55.1]} 21... Rad8 {[%clk 0:01:24.3]} 22. Bf3 {[%clk 0:00:54.1]}
22... Qc7 {[%clk 0:01:18.2]} 23. Rd2 {[%clk 0:00:47.3]} 23... g5 {[%clk
0:01:14.1]} 24. Rad1 {[%clk 0:00:34.3]} 24... g4 {[%clk 0:01:13.7]} 25. Be2
{[%clk 0:00:33.9]} 25... Qc6 {[%clk 0:01:09.5]} 26. Bf1 {[%clk 0:00:30.8]} 26...
c4 {[%clk 0:01:01.6]} 27. Qc2 {[%clk 0:00:26.4]} 27... Rd7 {[%clk 0:00:56.8]}
28. Rd4 {[%clk 0:00:20.6]} 28... Rg7 {[%clk 0:00:54.9]} 29. Kf2 {[%clk
0:00:18.6]} 29... Rg6 {[%clk 0:00:52.6]} 30. Be2 {[%clk 0:00:16.7]} 30... Rh6
{[%clk 0:00:50.5]} 31. Qc1 {[%clk 0:00:17.2]} 31... b5 {[%clk 0:00:45.7]} 32.
axb5 {[%clk 0:00:15]} 32... axb5 {[%clk 0:00:41.6]} 33. Rh1 {[%clk 0:00:15.1]}
33... Rxh1 {[%clk 0:00:39.7]} 34. Qxh1 {[%clk 0:00:16]} 34... Kg7 {[%clk
0:00:36.5]} 35. Qh5 {[%clk 0:00:14.4]} 35... h6 {[%clk 0:00:36]} 36. Qh2 {[%clk
0:00:09.5]} 36... Ra8 {[%clk 0:00:35.3]} 37. Rd1 {[%clk 0:00:09.4]} 37... Qe8
{[%clk 0:00:32.6]} 38. Rh1 {[%clk 0:00:09.3]} 38... Qg6 {[%clk 0:00:32]} 39. Rd1
{[%clk 0:00:03.9]} 39... Ra2 {[%clk 0:00:29.9]} 40. Rd2 {[%clk 0:00:04.4]} 40...
Ra1 {[%clk 0:00:30.1]} 41. Rd1 {[%clk 0:00:04]} 41... Rxd1 {[%clk 0:00:28.8]}
42. Bxd1 {[%clk 0:00:04.9]} 42... Qe8 {[%clk 0:00:24.9]} 43. Qg1 {[%clk
0:00:05.4]} 43... b4 {[%clk 0:00:20.3]} 44. Qe1 {[%clk 0:00:05.6]} 44... b3
{[%clk 0:00:19.4]} 45. Qd2 {[%clk 0:00:05]} 45... Qa4 {[%clk 0:00:19]} 46. Be2
{[%clk 0:00:05.3]} 46... Qa1 {[%clk 0:00:18.4]} 47. Bd1 {[%clk 0:00:05.7]} 47...
Qa5 {[%clk 0:00:17.1]} 48. Ke2 {[%clk 0:00:06.3]} 48... Qc5 {[%clk 0:00:16.1]}
49. Kf2 {[%clk 0:00:04.4]} 49... Qc6 {[%clk 0:00:14.9]} 50. Qd4 {[%clk 0:00:05]}
50... Qb5 {[%clk 0:00:12.2]} 51. Qd2 {[%clk 0:00:05.1]} 51... Qa4 {[%clk
0:00:11.8]} 1/2-1/2

[Event "*** Titled Tuesday Blitz"]
[Site "Chess.com"]
[Date "2020.05.19"]
[Round "6"]
[White "dennisodessa"]
[Black "hellokostya"]
[Result "0-1"]
[WhiteElo "2226"]
[BlackElo "2404"]
[TimeControl "180+1"]
[EndTime "13:10:01 PDT"]
[Termination "hellokostya won by checkmate"]

1. d4 {[%clk 0:02:59.6]} 1... Nf6 {[%clk 0:02:58.1]} 2. c4 {[%clk 0:02:59.2]}
2... g6 {[%clk 0:02:56.7]} 3. Nc3 {[%clk 0:02:58.6]} 3... Bg7 {[%clk 0:02:56.6]}
4. e4 {[%clk 0:02:58.2]} 4... d6 {[%clk 0:02:56.9]} 5. f3 {[%clk 0:02:58.1]}
5... O-O {[%clk 0:02:56.2]} 6. Be3 {[%clk 0:02:58.7]} 6... b6 {[%clk 0:02:55.7]}
7. Bd3 {[%clk 0:02:57.3]} 7... a6 {[%clk 0:02:49.9]} 8. Nge2 {[%clk 0:02:56.6]}
8... c5 {[%clk 0:02:46.8]} 9. O-O {[%clk 0:02:55.9]} 9... Nc6 {[%clk 0:02:42.8]}
10. Qd2 {[%clk 0:02:44.9]} 10... e6 {[%clk 0:02:39.4]} 11. Rfd1 {[%clk
0:02:36.8]} 11... e5 {[%clk 0:01:44.2]} 12. dxc5 {[%clk 0:02:24.1]} 12... dxc5
{[%clk 0:01:42.8]} 13. Nd5 {[%clk 0:02:25]} 13... Nxd5 {[%clk 0:01:39.4]} 14.
cxd5 {[%clk 0:02:07.6]} 14... Nd4 {[%clk 0:01:38.8]} 15. b4 {[%clk 0:01:56.8]}
15... f5 {[%clk 0:01:13.2]} 16. bxc5 {[%clk 0:01:45.5]} 16... bxc5 {[%clk
0:01:11.8]} 17. Rac1 {[%clk 0:01:23.1]} 17... Qd6 {[%clk 0:00:54.4]} 18. Qa5
{[%clk 0:00:35]} 18... fxe4 {[%clk 0:00:39.6]} 19. fxe4 {[%clk 0:00:35.9]} 19...
Bg4 {[%clk 0:00:38.6]} 20. Rd2 {[%clk 0:00:36]} 20... Rfc8 {[%clk 0:00:16.9]}
21. h3 {[%clk 0:00:34.4]} 21... Bd7 {[%clk 0:00:16]} 22. Nc3 {[%clk 0:00:13.3]}
22... c4 {[%clk 0:00:15.4]} 23. Bf1 {[%clk 0:00:13.2]} 23... Rc5 {[%clk
0:00:14.4]} 24. Qa3 {[%clk 0:00:13.2]} 24... Bf8 {[%clk 0:00:12.1]} 25. Na4
{[%clk 0:00:09.5]} 25... Rcc8 {[%clk 0:00:07.8]} 26. Qxd6 {[%clk 0:00:09.3]}
26... Bxd6 {[%clk 0:00:08.7]} 27. Nc3 {[%clk 0:00:08.5]} 27... Be8 {[%clk
0:00:03.5]} 28. Ne2 {[%clk 0:00:05.9]} 28... Nxe2+ {[%clk 0:00:03.1]} 29. Bxe2
{[%clk 0:00:06.8]} 29... Bb5 {[%clk 0:00:01.5]} 30. Rdc2 {[%clk 0:00:06.6]}
30... Rab8 {[%clk 0:00:01.8]} 31. Bxc4 {[%clk 0:00:05.3]} 31... Bxc4 {[%clk
0:00:02.7]} 32. Rxc4 {[%clk 0:00:06.2]} 32... Rxc4 {[%clk 0:00:03.2]} 33. Rxc4
{[%clk 0:00:07.1]} 33... Rb1+ {[%clk 0:00:03.6]} 34. Kh2 {[%clk 0:00:07.3]}
34... Rb2 {[%clk 0:00:04.5]} 35. Ra4 {[%clk 0:00:06.7]} 35... Bb4 {[%clk
0:00:02.6]} 36. Rxa6 {[%clk 0:00:05.3]} 36... h5 {[%clk 0:00:03]} 37. Bg5 {[%clk
0:00:03.8]} 37... Kf7 {[%clk 0:00:03.1]} 38. Rf6+ {[%clk 0:00:03.5]} 38... Kg7
{[%clk 0:00:03.4]} 39. Ra6 {[%clk 0:00:04.2]} 39... Bc3 {[%clk 0:00:03.4]} 40.
Bf6+ {[%clk 0:00:04.1]} 40... Kf7 {[%clk 0:00:03.7]} 41. a4 {[%clk 0:00:04.3]}
41... Rd2 {[%clk 0:00:03.8]} 42. Re6 {[%clk 0:00:04.2]} 42... Bd4 {[%clk
0:00:03.7]} 43. Bxe5 {[%clk 0:00:04.6]} 43... Be3 {[%clk 0:00:04.2]} 44. Bd6
{[%clk 0:00:04]} 44... h4 {[%clk 0:00:04.4]} 45. a5 {[%clk 0:00:03.4]} 45... Ra2
{[%clk 0:00:04.1]} 46. Bc7 {[%clk 0:00:03.7]} 46... g5 {[%clk 0:00:02.9]} 47.
Bb6 {[%clk 0:00:03.7]} 47... Bf4+ {[%clk 0:00:02.9]} 48. Kh1 {[%clk 0:00:04]}
48... Bg3 {[%clk 0:00:03.5]} 49. Kg1 {[%clk 0:00:04]} 49... Ra1# {[%clk
0:00:03.9]} 0-1